Cogmind - Beta 10.2 @@@ ROGUE MODE // 2021.11.10 @ 14:35:16 Player: rath Result: Destroyed by S-27 Virus with Autogun Performance ------------- Evolutions (3) 1500 Regions Visited (10) 2000 Robots Destroyed (94) 470 Value Destroyed (2455) 2455 Prototype IDs (39) 780 Alien Tech Used (1) 200 Bonus (499) 499 TOTAL SCORE: 7904 Bonus ------- High Alert Combat Kills 55 Follower Combat Kills 204 Aligned with FarCom 300 Friendly Fire -60 Cogmind --------- Core Integrity 0/700 Matter 300/300 Energy 50/100 System Corruption 8% Temperature Cool (0) Movement Core (50) Location -7/Lower Caves Parts ------- > --- POWER (1) -------- (None) > --- PROPULSION (3) --- (None) > --- UTILITY (7) ------ Advanced Signal Interpreter Improved Propulsion Shielding Hacking Suite > --- WEAPON (2) ------- (None) > --- INVENTORY (4) ---- Improved VTOL Module Improved Cesium-ion Thruster Advanced Sensor Array Improved Light Armor Plating Peak State ------------ > --- POWER ------------ Reinforced Fission Core > --- PROPULSION ------- Carbon-fiber Leg Potential Leg Potential Leg > --- UTILITY ---------- Large Storage Unit Humpback Experimental Targeting Computer Advanced Weapon Cycler > --- WEAPON ----------- Advanced Beam Rifle Enhanced Autogun > --- INVENTORY -------- Light Nuclear Core Light Nuclear Core Improved Aluminum Leg Improved VTOL Module Improved VTOL Module Advanced Heat Sink Experimental Heat Sink Large Storage Unit Large Storage Unit Improved Terrain Scan Processor Improved Propulsion Shielding Improved Propulsion Shielding 8R-AWN's Armor/EX Hacking Suite Hacking Suite System Shield System Shield System Shield AS-neutralizer No. 17b Heavy EM Pulse Gun Precision Beam Rifle Enhanced Autogun Enhanced Autogun Enhanced Autogun AWS/Gauss Scythe Deploy-a-Sentry Deploy-a-Sentry [Rating: 67] Favorites ----------- Power Reinforced Fission Core Engine Light Ion Engine Power Core Reinforced Fission Core Propulsion Aluminum Leg Leg Aluminum Leg Flight Unit Improved Cesium-ion Thruster Utility Large Storage Unit Device Long-range Sensor Array Storage Large Storage Unit Processor Advanced Signal Interpreter Hackware Hacking Suite Protection Improved Propulsion Shielding Weapon Enhanced Autogun Energy Gun Spread Laser Energy Cannon Improved EM Pulse Cannon Ballistic Gun Enhanced Autogun Launcher Grenade Launcher Impact Weapon Impact Mace Slashing Weapon Scythe Build | -11 -10 -10 -9 -9 -9 -8 -8 -7 -7 -7 ------- Run | Scr Mat Min Mat Min Exi Min Mat Fac Low Low Slots Evolved 6 | . . . 2 . . . 2 2 . . Power . | . . . . . . . . . . . Propulsion 1 | . . . 1 . . . . . . . Utility 5 | . . . 1 . . . 2 2 . . Weapon . | . . . . . . . . . . . Parts Attached 149 | . 15 3 27 8 16 5 16 55 2 2 Power 10 | . 1 . 4 . 2 1 . 2 . . Engine 6 | . 1 . 4 . 1 . . . . . Core 4 | . . . . . 1 1 . 2 . . Reactor . | . . . . . . . . . . . Propulsion 38 | . 4 2 4 3 4 . 5 15 . 1 Treads . | . . . . . . . . . . . Leg 27 | . 4 2 4 3 4 . 3 7 . . Wheel . | . . . . . . . . . . . Hover . | . . . . . . . . . . . Flight 11 | . . . . . . . 2 8 . 1 Utility 45 | . 5 . 7 . 2 3 6 21 . 1 Device 14 | . . . 2 . . 2 3 7 . . Storage 16 | . 5 . 5 . 2 1 1 2 . . Processor 4 | . . . . . . . 2 2 . . Hackware 4 | . . . . . . . . 4 . . Protection 7 | . . . . . . . . 6 . 1 Artifact . | . . . . . . . . . . . Weapon 56 | . 5 1 12 5 8 1 5 17 2 . Energy Gun 17 | . 3 1 7 1 . . 2 2 1 . Energy Cannon 9 | . 2 . 1 2 2 . . 2 . . Ballistic Gun 17 | . . . 4 . 3 1 3 6 . . Ballistic Cannon . | . . . . . . . . . . . Launcher 5 | . . . . 2 3 . . . . . Special Weapon . | . . . . . . . . . . . Impact Weapon 1 | . . . . . . . . 1 . . Slashing Weapon 7 | . . . . . . . . 6 1 . Piercing Weapon . | . . . . . . . . . . . Special Melee Weapon . | . . . . . . . . . . . Unidentified Prototypes 16 | . . . 3 . 1 1 6 4 . 1 Parts Lost 29 | . 2 1 3 1 7 1 2 6 1 5 Power 4 | . . . . . 1 1 . 1 . 1 Propulsion 8 | . . . 2 . 4 . 1 1 . . Utility 5 | . . . . . . . 1 2 . 2 Weapon 12 | . 2 1 1 1 2 . . 2 1 2 Highest Loss Streak 5 | . 1 1 1 2 3 1 1 2 1 5 Average Slot Usage (%) 93 | . 97 99 99 99 85 87 87 92 99 97 Engine 6 | . 14 14 10 11 10 6 . . . . Core 3 | . . . . . . 4 9 7 7 6 Leg 22 | . 27 28 33 32 32 33 25 14 . . Flight 5 | . . . . . . . . 8 23 22 Device 3 | . . . 8 . . . 4 4 7 6 Storage 23 | . 27 28 24 33 30 21 22 19 15 14 Processor 4 | . . . . . . . 8 10 7 7 Hackware 3 | . . . . . . . . 5 15 14 Protection 2 | . . . . . . . . 4 7 7 Energy Gun 5 | . 17 13 13 9 1 . 5 . . . Energy Cannon 5 | . 8 14 2 9 1 16 1 2 7 6 Ballistic Gun 3 | . . . 6 . 3 5 10 6 . . Slashing Weapon 2 | . . . . . . . . 4 6 6 Naked Turns . | . . . . . . . . . . . Heaviest Build 144 | 11 43 35 61 58 127 124 138 144 34 34 Greatest Support 90 | 20 20 20 30 40 90 70 75 75 22 22 Greatest Overweight (x) 11 | . 11 1 2 2 1 1 2 3 1 1 Average Overweight (x) 1 | . 1 1 1 1 . 1 1 1 1 . Largest Inventory Capacity 36 | . 16 14 22 22 30 30 36 36 12 12 Average Capacity 21 | . 14 14 17 22 23 29 32 26 12 11 Most Carried 36 | . 16 14 22 22 28 27 35 36 12 8 Average Carried 19 | . 13 13 16 21 20 25 29 26 7 6 Final Capacity 36 | 6 14 14 22 22 30 30 36 12 12 4 Final Carried 35 | 6 14 14 21 22 26 26 35 12 7 4 Class Distribution -------------------- 51% | Hauler-Mutant 27% | Mutant 21% | Hacker-Mutant Dominant Class ---------------- Mutant | -10/Materials Mutant | -10/Mines Mutant | -9/Materials Hauler-Mutant | -9/Mines Hauler-Mutant | -9/Exiles Hauler-Mutant | -8/Mines Hauler-Mutant | -8/Materials Hauler-Mutant | -7/Factory Hacker-Mutant | -7/Lower Caves Hacker-Mutant | -7/Lower Caves Resources | -11 -10 -10 -9 -9 -9 -8 -8 -7 -7 -7 ----------- Run | Scr Mat Min Mat Min Exi Min Mat Fac Low Low Matter Collected 2732 | 200 101 70 382 153 151 251 435 813 88 88 Remotely . | . . . . . . . . . . . Salvage Created 4057 | . 564 166 463 110 151 282 1080 1241 . . Parts 198 | . 32 7 36 5 7 4 60 47 . . Haulers Intercepted 12 | . 2 . 3 . . . 3 4 . . Recyclers Shooed 4 | . . . 1 . . . . 3 . . Parts Field Recycled . | . . . . . . . . . . . Retrieved Matter . | . . . . . . . . . . . Parts Self-Destructed . | . . . . . . . . . . . Prevented . | . . . . . . . . . . . Kills | -11 -10 -10 -9 -9 -9 -8 -8 -7 -7 -7 ------- Run | Scr Mat Min Mat Min Exi Min Mat Fac Low Low Combat Hostiles Destroyed 79 | . 11 4 11 11 7 3 18 14 . . Melee 1 | . . . . . . . . 1 . . Guns 51 | . 7 2 9 1 5 1 17 9 . . Cannons 11 | . 2 2 . 2 . 1 1 3 . . AOE 14 | . 2 . 2 8 2 . . . . . Classes Destroyed 14 | . 5 . 3 1 . 1 3 1 . . Worker 3 | . . . 1 . . 2 . . . . Tunneler 2 | . . . 1 . . . 1 . . . Hauler 12 | . 2 . 3 . . . 3 4 . . Recycler 8 | . 2 . 1 . . 1 1 3 . . Mechanic 1 | . . . . . . . 1 . . . Operator 3 | . 3 . . . . . . . . . Watcher 1 | . . . . . . . 1 . . . Swarmer 18 | . 6 . 8 . . . 4 . . . Grunt 30 | . 5 4 . 2 . 2 8 9 . . Brawler 2 | . . . . . . 1 . 1 . . Duelist 2 | . . . . . . . 2 . . . Sentry 8 | . . . 3 . . . 4 1 . . Programmer 3 | . . . . . . . . 3 . . Assembled 15 | . . . . 9 6 . . . . . Best Kill Streak 8 | . 4 2 5 8 6 1 4 3 . . Combat Bots Only 8 | . 3 2 4 8 6 1 4 3 . . Max Kills in Single Turn 5 | . 3 1 2 5 2 1 1 1 . . Gunslinging . | . . . . . . . . . . . Exploded 5 | . 2 . 2 5 2 . . . . . Melee 1 | . . . . . . . . 1 . . Uniques/NPCs Destroyed 1 | . . . . . 1 . . . . . 8R-AWN (-9/Exiles) Combat | -11 -10 -10 -9 -9 -9 -8 -8 -7 -7 -7 -------- Run | Scr Mat Min Mat Min Exi Min Mat Fac Low Low Damage Taken 6625 | . 346 121 796 105 1807 372 742 1267 95 974 Core 1213 | . 70 . 103 10 196 66 67 159 26 516 Absorbed by Shields . | . . . . . . . . . . . Core Remaining (%) 66 | 100 . 72 . . . 6 87 . . . Volleys Fired 308 | . 49 9 47 7 8 27 73 81 5 2 Largest 2 | . 2 2 2 2 2 2 2 2 2 1 Hottest 136 | . 125 125 125 113 60 136 91 94 134 69 Shots Fired 603 | . 92 16 93 14 69 41 141 128 5 4 Gun 484 | . 70 7 81 6 61 14 130 113 2 . Cannon 107 | . 22 9 12 4 . 27 11 15 3 4 Launcher 12 | . . . . 4 8 . . . . . Special . | . . . . . . . . . . . Kinetic 312 | . . . 38 . 61 14 95 104 . . Thermal 185 | . 58 16 23 4 . 27 46 9 2 . Explosive 12 | . . . . 4 8 . . . . . Electromagnetic 94 | . 34 . 32 6 . . . 15 3 4 Robot Hit Streak 22 | . 12 7 21 5 15 17 22 16 1 2 Robot Miss Streak 9 | . 9 4 9 2 2 1 3 4 2 1 Penetration Max . | . . . . . . . . . . . Secondary Targets 1 | . . . 1 . . . . . . . Max Gunslinging Chain 1 | . . . 1 . . . . . . . Autonomous 61 | . . . . . 61 . . . . . Shots Hit Robots 419 | . 54 12 60 7 53 33 95 101 2 2 Core Hits 215 | . 40 14 29 23 21 8 42 36 1 1 Critical Hits 6 | . . . 1 . . 3 2 . . . Critical Kills 1 | . . . 1 . . . . . . . Critical Parts Destroyed 5 | . . . . . . 3 2 . . . Melee Attacks 28 | . . . . . . . . 19 . 9 Impact . | . . . . . . . . . . . Slashing 28 | . . . . . . . . 19 . 9 Piercing . | . . . . . . . . . . . Sneak Attacks . | . . . . . . . . . . . Combat Hostiles . | . . . . . . . . . . . Follow-up Attacks . | . . . . . . . . . . . Damage Inflicted 8758 | . 841 149 819 684 1639 637 1711 2063 141 74 Guns 6003 | . 509 79 590 84 1416 204 1505 1601 15 . Cannons 1510 | . 194 70 124 41 . 433 206 369 47 26 Explosions 1089 | . 133 . 99 555 223 . . . 79 . Melee 124 | . . . . . . . . 93 . 31 Ramming 32 | . 5 . 6 4 . . . . . 17 Kinetic 4198 | . . . 172 . 1416 204 965 1441 . . Thermal 2706 | . 673 149 410 41 . 433 746 160 94 . Explosive 778 | . . . . 555 223 . . . . . Electromagnetic 920 | . 163 . 231 84 . . . 369 47 26 Impact . | . . . . . . . . . . . Slashing 124 | . . . . . . . . 93 . 31 Piercing . | . . . . . . . . . . . Highest Corruption 8 | . 2 2 4 4 4 8 1 5 5 8 Average Corruption 3 | . 2 2 3 4 4 5 1 3 5 5 Corruption Purged . | . . . . . . . . . . . Effects 158 | . 9 5 2 15 35 17 1 39 14 21 Message Errors 39 | . 4 2 . 1 9 5 1 7 4 6 Matter Fused 31 | . . . . 3 10 3 . 7 3 5 Heat Flow Errors 13 | . . 1 . 3 3 . . 3 1 2 Energy Discharges 24 | . 1 1 . 2 6 2 . 8 2 2 Parts Rejected 3 | . . . 2 . . 1 . . . . Data Loss (minor) 28 | . 3 . . 6 6 3 . 5 1 4 Data Loss (major) 3 | . . . . . . . . 2 1 . Misfires 4 | . . . . . . . . 2 . 2 Targeting Errors 9 | . 1 . . . . 3 . 5 . . Weapon Failures 4 | . . 1 . . 1 . . . 2 . Overload Shots . | . . . . . . . . . . . Overflow Damage 53 | . 21 . . 9 9 . . . 8 6 Projectiles 13 | . 13 . . . . . . . . . Explosions 34 | . 8 . . 9 9 . . . 8 . Melee 6 | . . . . . . . . . . 6 Knockbacks . | . . . . . . . . . . . Impact . | . . . . . . . . . . . Kinetic . | . . . . . . . . . . . Secondary . | . . . . . . . . . . . Self-Inflicted Damage 200 | . 39 . 37 2 62 . . . 52 8 Shots 5 | . 1 . 1 . 2 . . . 1 . Rammed 4 | . . . 1 1 . . . . . 2 Targets Rammed 5 | . 1 . 1 1 . . . . . 2 Kicked 1 | . 1 . . . . . . . . . Crushed . | . . . . . . . . . . . Highest Temperature 443 | . 156 219 369 271 183 408 333 443 190 182 Average Temperature 95 | . 56 82 123 97 83 190 96 89 73 58 Received Heat Transfer 1451 | . 57 69 123 30 20 162 333 504 . 153 Effects 9 | . . . . 2 . 2 2 3 . . Energy Bleed 1 | . . . . . . . 1 . . . Interference 8 | . . . . 2 . 2 1 3 . . Siege Activations . | . . . . . . . . . . . Robots Corrupted 1 | . . . . . . . . 1 . . Combat Hostiles 1 | . . . . . . . . 1 . . Parts Fried 1 | . . . 1 . . . . . . . Impact Corruptions . | . . . . . . . . . . . Robots Melted 1 | . . . . . . 1 . . . . Combat Hostiles 1 | . . . . . . 1 . . . . Parts Melted 4 | . . . . . . 2 2 . . . Heat Transferred 4587 | . 1047 248 639 74 . 777 1369 296 137 . Parts Sabotaged . | . . . . . . . . . . . Parts Stolen 4 | . . . . . . . . . 3 1 Parts Stripped . | . . . . . . . . . . . Power Chain Reactions 4 | . 1 . 1 1 . . . . 1 . Missiles Intercepted . | . . . . . . . . . . . Alert | -11 -10 -10 -9 -9 -9 -8 -8 -7 -7 -7 ------- Run | Scr Mat Min Mat Min Exi Min Mat Fac Low Low Peak Influence 499 | . 209 127 309 118 . 204 499 308 . . Initial 226 | . . 7 49 48 . . 79 226 . . Average 120 | . 43 112 144 63 . 45 288 127 . . Maximum Alert Level 2 | . 1 . 1 . . 1 2 1 . . Low Security (%) 83 | . 99 100 83 100 . 87 35 84 . . Level 1 12 | . . . 16 . . 12 32 15 . . Level 2 4 | . . . . . . . 32 . . . Level 3 . | . . . . . . . . . . . Level 4 . | . . . . . . . . . . . Level 5 . | . . . . . . . . . . . High Security . | . . . . . . . . . . . Max Security . | . . . . . . . . . . . Squads Dispatched 13 | . 3 . . . . . 2 8 . . Investigation 4 | . 1 . . . . . 1 2 . . Extermination 3 | . . . . . . . . 3 . . Reinforcement 3 | . 2 . . . . . 1 . . . Assault . | . . . . . . . . . . . Garrison 3 | . . . . . . . . 3 . . Intercept . | . . . . . . . . . . . Construction Impeded . | . . . . . . . . . . . Haulers Reinforced . | . . . . . . . . . . . Stealth | -11 -10 -10 -9 -9 -9 -8 -8 -7 -7 -7 --------- Run | Scr Mat Min Mat Min Exi Min Mat Fac Low Low Distress Signals 9 | . 3 . 3 . . . 2 1 . . Communications Jammed . | . . . . . . . . . . . Distress Signals . | . . . . . . . . . . . Times Spotted 164 | . 34 4 23 13 12 9 30 26 3 10 Peak Tracking Total 9 | . 5 2 5 9 9 3 6 5 3 7 Tactical Retreats 14 | . 1 . . . 4 2 4 1 . 2 Traps | -11 -10 -10 -9 -9 -9 -8 -8 -7 -7 -7 ------- Run | Scr Mat Min Mat Min Exi Min Mat Fac Low Low Traps Triggered 8 | . 3 . 2 . . . . 2 1 . Indirectly . | . . . . . . . . . . . Trap Hack Attempts . | . . . . . . . . . . . Triggered . | . . . . . . . . . . . Disarmed . | . . . . . . . . . . . Reprogrammed . | . . . . . . . . . . . Reused . | . . . . . . . . . . . Traps Extracted . | . . . . . . . . . . . Installed . | . . . . . . . . . . . Triggered . | . . . . . . . . . . . Machines | -11 -10 -10 -9 -9 -9 -8 -8 -7 -7 -7 ---------- Run | Scr Mat Min Mat Min Exi Min Mat Fac Low Low Machines Disabled 12 | . . 2 1 1 6 . 1 . . 1 Max in Single Turn 1 | . . 1 1 1 1 . 1 . . 1 Garrison Access 1 | . . . . . . . . 1 . . Machines Sabotaged . | . . . . . . . . . . . Garrisons Compromised . | . . . . . . . . . . . Overloaded Fab Kills . | . . . . . . . . . . . Fab Network Shutdowns . | . . . . . . . . . . . Hacking | -11 -10 -10 -9 -9 -9 -8 -8 -7 -7 -7 --------- Run | Scr Mat Min Mat Min Exi Min Mat Fac Low Low Machines Accessed 33 | . 5 . 9 . 1 . 3 14 . 1 Terminals 26 | . 5 . 8 . . . 2 11 . . Fabricators 1 | . . . . . . . . 1 . . Repair Stations . | . . . . . . . . . . . Recycling Units . | . . . . . . . . . . . Scanalyzers 3 | . . . 1 . . . 1 1 . . Garrison Access 1 | . . . . . . . . 1 . . Total Hacks 100 | . 13 . 25 . 1 . 21 39 . 1 Successful 61 | . 7 . 17 . 1 . 15 20 . 1 Failed 39 | . 6 . 8 . . . 6 19 . . Catastrophic 5 | . 1 . . . . . . 4 . . Database Lockouts . | . . . . . . . . . . . Manual 81 | . 14 . 26 . 1 . 10 30 . . Terminals 72 | . 13 . 23 . . . 9 27 . . Fabricators 4 | . . . . . . . . 4 . . Repair Stations . | . . . . . . . . . . . Recycling Units . | . . . . . . . . . . . Scanalyzers 19 | . . . 2 . . . 12 5 . . Garrison Access 3 | . . . . . . . . 3 . . Terminal Hacks 27 | . 4 . 11 . 1 . 3 7 . 1 Record 1 | . . . . . . . . . . 1 Part Schematic 1 | . . . 1 . . . . . . . Branch Access Points 2 | . . . 1 . . . . 1 . . Terminal Index 4 | . 1 . 1 . . . 1 1 . . Fabricator Index 1 | . . . . . . . . 1 . . Alert Level 1 | . . . 1 . . . . . . . Unreport Threat 1 | . . . . . . . . 1 . . Locate Traps 5 | . 1 . 2 . . . 1 1 . . Patrol Status 3 | . . . 2 . . . . 1 . . Hauler Manifests 1 | . . . 1 . . . . . . . Zone Layout 6 | . 2 . 2 . . . 1 1 . . EX-Prototype ID Bank 1 | . . . . . 1 . . . . . Fabricator Hacks 4 | . . . . . . . . 4 . . Load Schematic 2 | . . . . . . . . 2 . . Build 2 | . . . . . . . . 2 . . Repair Station Hacks . | . . . . . . . . . . . Recycling Unit Hacks . | . . . . . . . . . . . Scanalyzer 17 | . . . 2 . . . 10 5 . . Insert Component 8 | . . . 1 . . . 5 2 . . Analyze 9 | . . . 1 . . . 5 3 . . Garrison Access Hacks 1 | . . . . . . . . 1 . . Seal Access 1 | . . . . . . . . 1 . . Unauthorized Hacks 12 | . 3 . 4 . . . 2 3 . . Terminals 12 | . 3 . 4 . . . 2 3 . . Botnet 8 | . 2 . 3 . . . 1 2 . . Operators 4 | . 1 . 1 . . . 1 1 . . Fabricators . | . . . . . . . . . . . Repair Stations . | . . . . . . . . . . . Recycling Units . | . . . . . . . . . . . Scanalyzers . | . . . . . . . . . . . Garrison Access . | . . . . . . . . . . . Data Cores Recovered 1 | . 1 . . . . . . . . . Used 1 | . 1 . . . . . . . . . Hacking Detections 27 | . 3 . 8 . . . 3 13 . . Full Trace Events 4 | . . . 1 . . . 1 2 . . Feedback Events 2 | . . . . . . . 1 1 . . Corruption 1 | . . . . . . . 1 . . . Hackware Fried 1 | . . . . . . . . 1 . . Feedback Blocked . | . . . . . . . . . . . Robot Schematics Acquired . | . . . . . . . . . . . Robots Built . | . . . . . . . . . . . Matter . | . . . . . . . . . . . Time . | . . . . . . . . . . . Total Robot Build Rating . | . . . . . . . . . . . Part Schematics Acquired 7 | . . . 2 . . . 3 2 . . Parts Built 2 | . . . . . . . . 2 . . Matter 365 | . . . . . . . . 365 . . Time 189 | . . . . . . . . 189 . . Total Part Build Rating 6 | . . . . . . . . 6 . . Parts Repaired . | . . . . . . . . . . . Time . | . . . . . . . . . . . Parts Recycled . | . . . . . . . . . . . Recycled Matter . | . . . . . . . . . . . Retrieved Matter . | . . . . . . . . . . . Retrieved Components . | . . . . . . . . . . . Parts Scanalyzed 7 | . . . 1 . . . 4 2 . . Part Schematics Acquired 6 | . . . 1 . . . 3 2 . . Parts Damaged . | . . . . . . . . . . . Bothacking | -11 -10 -10 -9 -9 -9 -8 -8 -7 -7 -7 ------------ Run | Scr Mat Min Mat Min Exi Min Mat Fac Low Low Used RIF Installer . | . . . . . . . . . . . Robots Hacked . | . . . . . . . . . . . Non-combat . | . . . . . . . . . . . Combat . | . . . . . . . . . . . Robot Hacks Applied . | . . . . . . . . . . . Relay Couplers Released . | . . . . . . . . . . . Robots Rewired . | . . . . . . . . . . . Allies Hacked . | . . . . . . . . . . . Hacks Repelled . | . . . . . . . . . . . Allies | -11 -10 -10 -9 -9 -9 -8 -8 -7 -7 -7 -------- Run | Scr Mat Min Mat Min Exi Min Mat Fac Low Low Total Allies . | . . . . . . . . . . . Largest Group . | . . . . . . . . . . . Highest-Rated Group . | . . . . . . . . . . . Highest-Rated Ally . | . . . . . . . . . . . Total Orders . | . . . . . . . . . . . Ally Attacks 17 | . . . . . . 17 . . . . Total Damage 938 | . . . . . . 938 . . . . Kills 6 | . . . . . . 6 . . . . Allies Corrupted . | . . . . . . . . . . . Allies Melted . | . . . . . . . . . . . Turrets Deployed 1 | . . . . . . 1 . . . . Intel | -11 -10 -10 -9 -9 -9 -8 -8 -7 -7 -7 ------- Run | Scr Mat Min Mat Min Exi Min Mat Fac Low Low Robot Analysis Total . | . . . . . . . . . . . Derelict Logs Recovered 5 | . . 2 . 1 . . . . 1 1 Drone Launches . | . . . . . . . . . . . Drone Recoveries . | . . . . . . . . . . . Exploration | -11 -10 -10 -9 -9 -9 -8 -8 -7 -7 -7 ------------- Run | Scr Mat Min Mat Min Exi Min Mat Fac Low Low Turns Passed 10880 | . 1715 359 999 655 1442 647 1049 2573 522 919 Spaces Moved 6111 | 1 815 209 473 386 949 379 490 1495 513 401 Core 27 | . 2 . . . . . . . . 25 Treads . | . . . . . . . . . . . Legs 4460 | 1 813 209 473 386 949 379 490 760 . . Wheels . | . . . . . . . . . . . Hover . | . . . . . . . . . . . Flight 1624 | . . . . . . . . 735 513 376 Fastest Speed 29 | 120 120 150 150 150 90 136 136 95 95 29 Average Speed 134 | 120 152 150 155 150 140 136 140 132 95 88 Slowest Speed 600 | 120 600 150 180 180 150 136 175 210 95 95 Overloaded Moves . | . . . . . . . . . . . Propulsion Burnouts . | . . . . . . . . . . . Robots Hopped 2 | . . . . . . 2 . . . . Cave-ins Triggered . | . . . . . . . . . . . Exploration Rate (%) 54 | 2 89 75 41 70 63 72 49 33 66 43 Regions Visited 10 Branch Regions 6 Pre-discovered Areas 1 | . . 1 . . . . . . . . Known Exits Taken 3 | . . . 1 . . . . 1 1 . Unknown Exits Taken 7 | 1 1 1 . 1 1 1 1 . . . Scrap Searched 2 | . . 1 . . . . . . . 1 Spaces Dug 14 | . . . . . . . . 14 . . Terrain Destroyed 96 | . 3 . 4 23 47 . . 14 5 . Melee 14 | . . . . . . . . 14 . . Projectile 29 | . . . . . 29 . . . . . AOE 53 | . 3 . 4 23 18 . . . 5 . Terrain Rammed . | . . . . . . . . . . . Walls Destroyed . | . . . . . . . . . . . Machines Disabled . | . . . . . . . . . . . Actions | -11 -10 -10 -9 -9 -9 -8 -8 -7 -7 -7 --------- Run | Scr Mat Min Mat Min Exi Min Mat Fac Low Low Total 8287 | . 1197 239 646 445 1058 466 762 1979 540 955 Wait 1380 | . 286 14 57 39 . 53 147 236 21 527 Move 6098 | . 814 208 473 385 948 374 489 1494 512 401 Hop 2 | . . . . . . 2 . . . . Pick Up 172 | . 20 2 21 3 60 4 24 37 . 1 Fast Attach 28 | . 6 . 8 . 1 1 1 11 . . Attach 59 | . 3 1 7 2 14 1 8 20 1 2 Detach 10 | . . . . . 3 . 1 3 . 3 Swap 63 | . 6 2 12 6 1 3 7 24 1 1 Drop 117 | . 12 3 21 2 23 1 12 36 . 7 Fire 308 | . 49 9 47 7 8 27 73 81 5 2 Melee 28 | . . . . . . . . 19 . 9 Ram 2 | . . . . . . . . . . 2 Kick 2 | . 1 . . 1 . . . . . . Crush . | . . . . . . . . . . . Escape Stasis 18 | . . . . . . . . 18 . . Rewire . | . . . . . . . . . . . Trap . | . . . . . . . . . . . Miscellaneous . | . . . . . . . . . . . Route ------- -11/Scrapyard -10/Materials (discovered 4 exits: *Mat x3 / [*Min]) -10/Mines -9/Materials (discovered 6 exits: *Mat x2 / *Min x2 / *Sto x2) -9/Mines (discovered 3 exits: *Mat x2 / *Exi) -9/Exiles -8/Mines -8/Materials (discovered 2 exits: *Fac x2) -7/Factory (discovered 4 exits: *Fac x2 / *Low x2) -7/Lower Caves -7/Lower Caves History --------- Turn | Location | Event 1 | -11/Scrapyard | Discovered new exit (range 0) 1 | -11/Scrapyard | Entered Materials 120 | -10/Materials | Discovered new exit (range 7) 263 | -10/Materials | Discovered new exit (range 5) 301 | -10/Materials | Build established: Mutant 1061 | -10/Materials | Discovered new exit (range 16) 1479 | -10/Materials | Discovered new exit (range 13) 1716 | -10/Materials | Entered Mines 1745 | -10/Mines | Met a Derelict bent on vengeance 1932 | -10/Mines | Learned Materials garrison access intel 2045 | -10/Mines | Discovered new exit (range 7) 2075 | -10/Mines | Entered Materials 2075 | -9/Materials | Evolved 2 slots: Propulsion x1, Utility x1 2230 | -9/Materials | Identified exit to Mines 2230 | -9/Materials | Identified exit to Storage 2640 | -9/Materials | Discovered new exit (range 9) 2987 | -9/Materials | Discovered new exit (range 16) 3074 | -9/Materials | Entered Mines 3147 | -9/Mines | Assembled infested the area 3152 | -9/Mines | Assisted by a Guerilla fighting off Assembled 3156 | -9/Mines | Build established: Hauler-Mutant 3189 | -9/Mines | Destroyed 8 combat bots 3197 | -9/Mines | Discovered new exit (range 14) 3325 | -9/Mines | Discovered new exit (range 8) 3396 | -9/Mines | Learned Materials garrison access intel 3723 | -9/Mines | Deemed a non-threat by the Exiles lab entrance 3723 | -9/Mines | Discovered new exit (range 5) 3729 | -9/Mines | Entered Exiles 3767 | -9/Exiles | Met 8R-AWN 3794 | -9/Exiles | Met EX-HEX 3846 | -9/Exiles | Met EX-BIN 3867 | -9/Exiles | Aligned with FarCom system 3869 | -9/Exiles | Given EX-Vault access code 3903 | -9/Exiles | Opened EX-Vault 3920 | -9/Exiles | Found Potential Leg 3922 | -9/Exiles | Found Potential Leg 3926 | -9/Exiles | Found AWS/Gauss 3943 | -9/Exiles | Found Deploy-a-Sentry 3946 | -9/Exiles | Found Deploy-a-Sentry 3948 | -9/Exiles | Found Deploy-a-Sentry 3986 | -9/Exiles | Warned to stay clear of 0b10 Research branches 4054 | -9/Exiles | Met EX-DEC 4461 | -9/Exiles | Discovered new exit (range 14) 4714 | -9/Exiles | Attacked by the Exiles 4777 | -9/Exiles | Lost 3 parts (2n1w) 4812 | -9/Exiles | Core integrity fell below 50% 4845 | -9/Exiles | Destroyed 8R-AWN 4861 | -9/Exiles | Found Prototype Device 4867 | -9/Exiles | Found Prototype Processor 4869 | -9/Exiles | Found Prototype Protection 5171 | -9/Exiles | Stole three prototypes: Potential Leg, AWS/Gauss, Deploy-a-Sentry 5171 | -9/Exiles | Entered Mines 5503 | -8/Mines | Core integrity fell below 20% 5555 | -8/Mines | Identified AS-neutralizer No. 17b 5675 | -8/Mines | DAS Turret deployed 5806 | -8/Mines | Discovered new exit (range 10) 5818 | -8/Mines | Entered Materials 5818 | -8/Materials | Evolved 2 slots: Utility x2 5819 | -8/Materials | Loaded intel: 1 garrison access location 6107 | -8/Materials | Identified Exp. Targeting Computer 6607 | -8/Materials | Discovered new exit (range 8) 6662 | -8/Materials | Identified 8R-AWN's Armor/EX 6844 | -8/Materials | Discovered new exit (range 15) 6867 | -8/Materials | Entered Factory 6867 | -7/Factory | Evolved 2 slots: Utility x2 7400 | -7/Factory | Identified exit to Lower Caves 7902 | -7/Factory | Garrison activated, responded to threat 8746 | -7/Factory | Build established: Hacker-Mutant 8855 | -7/Factory | Hacking Suite fried by hacking feedback 8903 | -7/Factory | Fabricated Imp. VTOL Module? 9025 | -7/Factory | Fabricated Hacking Suite? 9088 | -7/Factory | Discovered new exit (range 14) 9157 | -7/Factory | Identified exit to Factory 9263 | -7/Factory | Discovered exit to Factory (range 4) 9440 | -7/Factory | Entered Lower Caves 9440 | -7/Lower Caves | Spotted NB-N2M(f) 9440 | -7/Lower Caves | Spotted 71-LEX(f) 9441 | -7/Lower Caves | Encountered a Master Thief 9441 | -7/Lower Caves | Encountered a Master Thief 9441 | -7/Lower Caves | Deploy-a-Sentry stolen by Master Thief 9444 | -7/Lower Caves | Spotted CW-2FO(f) 9445 | -7/Lower Caves | Encountered a Master Thief 9445 | -7/Lower Caves | Broken AWS/Gauss stolen by Master Thief 9454 | -7/Lower Caves | Broken Exp. Heat Sink stolen by Master Thief 9960 | -7/Lower Caves | Discovered new exit (range 4) 9961 | -7/Lower Caves | Identified exit to Lower Caves 9962 | -7/Lower Caves | Entered another Lower Caves area 9962 | -7/Lower Caves | Spotted B5-NMX(f) 9963 | -7/Lower Caves | Encountered a Master Thief 9977 | -7/Lower Caves | Imp. Cesium-ion Thruster stolen by Master Thief 10004 | -7/Lower Caves | Found Alien Artifact 10076 | -7/Lower Caves | Learned location of 1 exit from Factory 10423 | -7/Lower Caves | Identified Dimensional Node Initializer 10423 | -7/Lower Caves | Initialized slip node 10860 | -7/Lower Caves | Core integrity fell below 50% 10869 | -7/Lower Caves | Core integrity fell below 20% 10881 | -7/Lower Caves | Destroyed by S-27 Virus with Autogun Last Messages --------------- 10814_ Found Imp. Weapon Shielding. 10814_ Found Titanium Leg. 10814_ Found 34 Matter. 10815_ Acquired 34 matter. 10815_ Acquired 54 matter. 10843_ Imp. EM Pulse Cannon destroyed. 10844_ Lgt. Nuclear Core destroyed. 10851_ System corrupted: Component data lost. 10859_ Lrn. Sensor Array destroyed. 10862_ System Shield destroyed. 10863_ Scythe destroyed. 10863_ System corrupted by crushing effect (+3). 10863_ Dropped Lgt. Armor Plating. 10864_ Dropped Imp. Cesium-ion Thruster. 10864_ Dropped Imp. ECM Suite. 10865_ Dropped Imp. Propulsion Shielding. 10865_ Dropped Imp. Cesium-ion Thruster. 10866_ Dropped Med. Storage Unit. 10879_ Slammed into S-27 Virus. 10880_ Slammed into G-47 Trooper. Map ----- +----------------------------------------------------+ | | | | | ?????????????????????????????????????????????????? | | ?????????????????????????????????????????????????? | | ?????????????????????????????????????????????????? | | ?????????????????????????????????????????????????? | | ?????????????????????????????????????????????????? | | ?????????????????????????????????????????????????? | | ?????????????????????????????????????????????????? | | ?????????????????????????????????????????????????? | | ?????????????????????????????????????????????????? | | ?????????????????????????????????????????????????? | | ?????????????????????????????????????????????????? | | ?????????????????????????????????????????????????? | | ?????????????????????????????????????????????????? | | ?????????????????????????????????????????????????? | | ?????????????????????????????###?????????????????? | | ???????????????????????####### ##????????????????? | | ??????????????????????## #????????????????? | | ?????????????????????## #????????????????? | | ?????????????????????# ###????????????????? | | ?????????????????????# #??????????????????? | | ?????????????????????# s #??????????????????? | | ?????????????????????##s%######??????????????????? | | ??????????????????????# ##??????????????????????? | | ??????????????????????# @##?????####????????????? | | ??????????????????????##gsg###??# ##???????????? | | ???????????????????????##s ### #???????????? | | ???????????????????????##b ###?????????? | | ??????????????????????## ????????? | | ??????????????????????# ## ?????????? | | ??????????????????????# ##????????????? | | ??????????????????????# ###????????? ??? | | ??????????????????????# ##?????????? ??? | | ??????????????????????#!!= ###??????????? ??? | | ??????????????????????##!! ##???????????? ??? | | ??????????????????????##=! ##?????????????? ##? | | ??????????????????????# #??????????????? #? | | ??????????????????????# ##???????????????? #? | | ??????????????????????# #????????????????? #? | | ??????????????????????# ##?????????????????# #? | | ??????????????????????# #???????????##?????# #? | | ??????????????????????# #?????????? ##????# #? | | ??????????????????????# #####?????? #????# #? | | ??????????????????????# #????? #?????# ## | | ??????????????????????###### #????# #????## | | ??????????????????????????## ##### #???## | | ???????????????????????#### #??### | | ??????????????????????## #???# | | ??????????????????????# ##???## ## # | +----------------------------------------------------+ Best States ------------- Heat Dissipation 42 Energy Generation 19 Energy Capacity 310 Matter Stores 300 Matter Capacity 300 Sight Range 16 Robot Scan Range 20 Terrain Scan Density 10 Armor Coverage 150 Propulsion Shielding 66 Weapon Cycling 25 Evasion (%) 64 Targeting Accuracy 12 Core Analysis 6 Offensive Hacking 20 Defensive Hacking 10 Item Schematics ----------------- Imp. Sensor Array | -9/Materials | Hacked Hacking Suite | -9/Materials | Scanalyzed Imp. VTOL Module | -8/Materials | Scanalyzed Adv. Weapon Cycler | -8/Materials | Scanalyzed Adv. Signal Interpreter | -8/Materials | Scanalyzed Imp. Cesium-ion Thruster | -7/Factory | Scanalyzed Imp. Light Armor Plating | -7/Factory | Scanalyzed Robot Schematics ------------------ None Fabricated ------------ Imp. VTOL Module | x1 | -7/Factory Hacking Suite | x1 | -7/Factory Alien Tech Used ----------------- Dimensional Node Initializer Achievements -------------- Packrat Quick And Dirty Challenges ------------ None Game ------ Seed CentriumHeartClaws Manual? 0 Play Time 02:34:31 Cumulative 68.6 hours Start 2021.11.10 @ 11:03:40 End 2021.11.10 @ 14:35:16 Sessions 1 Manual Loads 0 Difficulty Rogue Special Mode None Game No. 25 Rogue 25 Adventurer 0 Explorer 0 Win Type - Total 0 Types 0/0/0/0/0/0/0/0/0 Lore% 39 Gallery% 50 Achievement% 36 Wizard Run 0 Options --------- ASCII 0 Keyboard 0 Movement Mouse Keybinds 0 Fullscreen 1 Font 36/Smallcaps Map View 76x50 Tactical HUD 1 Map Filters NONE Filters NONE Steam 1 RUN: 4605fd7a-fe50-4140-8c31-fe7079497d02